[Event "Deloitte NED-ch 2019"]
[Site "Amsterdam"]
[Date "2019.07.04"]
[Round "4.2"]
[White "Bok, Benjamin"]
[Black "Van Foreest, Jorden"]
[Result "1/2-1/2"]
[ECO "A15"]
[WhiteElo "2645"]
[BlackElo "2612"]
[Annotator "RC"]
[PlyCount "38"]
[EventDate "2019.07.01"]
[EventType "tourn"]
[EventCountry "NED"]
[SourceTitle "playchess.com"]
[Source "ChessBase"]
[SourceQuality "1"]
[TimeControl "40/5400+30:1800+30"]

1. Nf3 {[%emt 0:00:00]} Nf6 {[%emt 0:00:00]} 2. c4 {[%emt 0:00:00]} g6 {[%emt 0:00:00]} 3. b3 {[%emt 0:04:40]} Bg7 {[%emt 0:00:44]} 4. Bb2 {[%emt 0:00:08]} O-O {[%emt 0:02:02]} 5. g3 {[%emt 0:01:00]} d6 {[%emt 0:01:28]} 6. Bg2 {[%emt 0:19:50]} e5 {[%emt 0:01:28]} 7. d3 {[%emt 0:06:54]} Nc6 {[%emt 0:03:00]} 8. O-O {[%emt 0:01:28]} Nh5 {[%emt 0:00:33]} 9. Nc3 {[%emt 0:03:23]} f5 {[%emt 0:02:37]} 10. e3 {[%emt 0:02:49]} Nf6 {[%emt 0:07:50]} 11. a3 {[%emt 0:06:20]} a5 {[%emt 0:04:46]} 12. Rb1 {[%emt 0:01:40]} h6 {[%emt 0:00:21]} 13. Ba1 {[%emt 0:02:19]} g5 {[%emt 0:01:37]} 14. b4 {[%emt 0:08:19]} axb4 {[%emt 0:03:43]} 15. axb4 {[%emt 0:00:42]} Ne7 {[%emt 0:02:37]} 16. c5 {[%emt 0:07:23]} Ng6 {[%emt 0:06:26]} 17. Qb3+ {[%emt 0:01:22]} Kh7 {[%emt 0:00:48]} 18. cxd6 {[%emt 0:00:25]} cxd6 {[%emt 0:02:50]} 19. Rfc1 {[%emt 0:02:42]} g4 {[%emt 0:11:16]} 1/2-1/2

[Event "Deloitte NED-ch 2019"]
[Site "Amsterdam"]
[Date "2019.07.04"]
[Round "4.4"]
[White "Sokolov, Ivan"]
[Black "Van Foreest, Lucas"]
[Result "0-1"]
[ECO "D39"]
[WhiteElo "2584"]
[BlackElo "2521"]
[Annotator "ChessBase"]
[PlyCount "62"]
[EventDate "2019.07.01"]
[EventType "tourn"]
[EventCountry "NED"]
[SourceTitle "playchess.com"]
[Source "ChessBase"]
[SourceQuality "1"]
[TimeControl "40/5400+30:1800+30"]

1. d4 {[%emt 0:00:00]} Nf6 {[%emt 0:00:00]} 2. c4 {[%emt 0:00:00]} e6 {[%emt 0:00:00]} 3. Nf3 {[%emt 0:00:00]} d5 {[%emt 0:00:00]} 4. Nc3 {[%emt 0:00:00]} dxc4 {[%emt 0:00:00]} 5. e4 {[%emt 0:00:17]} Bb4 {[%emt 0:00:00]} 6. Bg5 {[%emt 0:00:12]} h6 {[%emt 0:00:05]} 7. Bxf6 {[%emt 0:00:06]} Qxf6 {[%emt 0:00:03]} 8. Bxc4 {[%emt 0:00:19]} c5 {[%emt 0:00:13]} 9. e5 {[%emt 0:00:40]} Qd8 {[%emt 0:00:08]} 10. O-O {[%emt 0:00:08]} O-O {[%emt 0:00:12]} 11. Ne4 {[%emt 0:00:53]} cxd4 {[%emt 0:00:05]} 12. Qe2 {[%emt 0:00:08]} Be7 {[%emt 0:00:03]} 13. Rfd1 {[%emt 0:01:20]} Qa5 {[%emt 0:00:07]} 14. a3 {[%emt 0:00:45]} Rd8 {[%emt 0:00:08]} 15. b4 {[%emt 0:00:50]} Qb6 {[%emt 0:00:04]} 16. g4 {[%emt 0:00:49]} Nd7 {[%emt 0:00:03]} 17. Rac1 {[%emt 0:02:05]} Qc7 {[%emt 0:00:05]} 18. Bxe6 {[%emt 0:00:38]} Qb6 {[%emt 0:00:04]} 19. Bf5 {[%emt 0:03:08]} Nf8 {[%emt 0:00:05]} 20. Bxc8 {[%emt 0:07:03]} Raxc8 {[%emt 0:00:18]} 21. Rxc8 {[%emt 0:00:07]} Rxc8 {[%emt 0:00:02]} 22. Nxd4 {[%emt 0:00:04]} Ng6 {[%emt 0:10:15]} 23. Ng3 {[%emt 0:04:46]} Rd8 {[%emt 0:29:57]} 24. Ngf5 {[%emt 0:20:32]} Bg5 {[%emt 0:03:15]} 25. Qe4 {[%emt 0:07:28]} Bf4 {[%emt 0:10:42]} 26. h4 {[%emt 0:06:33]} Bxe5 {[%emt 0:03:41]} 27. h5 {[%emt 0:00:18]} Re8 {[%emt 0:05:13]} 28. Kh1 {[%emt 0:08:42]} Nf4 {[%emt 0:01:28]} 29. Re1 {[%emt 0:03:47]} Qa6 {[%emt 0:03:33]} 30. Qf3 {[%emt 0:04:09]} Qd3 {[%emt 0:11:02]} 31. Rxe5 {[%emt 0:13:36]} Rxe5 {[%emt 0:00:39]} 0-1

[Event "Deloitte NED-ch 2019"]
[Site "Amsterdam"]
[Date "2019.07.04"]
[Round "4.7"]
[White "Tiviakov, Sergei"]
[Black "Werle, Jan"]
[Result "1/2-1/2"]
[ECO "C07"]
[WhiteElo "2608"]
[BlackElo "2555"]
[Annotator "RC"]
[PlyCount "31"]
[EventDate "2019.07.01"]
[EventType "tourn"]
[EventCountry "NED"]
[SourceTitle "playchess.com"]
[Source "ChessBase"]
[SourceQuality "1"]
[TimeControl "40/5400+30:1800+30"]

1. e4 {[%emt 0:00:00]} e6 {[%emt 0:00:00]} 2. d4 {[%emt 0:00:00]} d5 {[%emt 0:00:00]} 3. Nd2 {[%emt 0:00:00]} c5 {[%emt 0:00:00]} 4. exd5 {[%emt 0:00:13]} Qxd5 {[%emt 0:00:00]} 5. dxc5 {[%emt 0:00:27]} Nf6 {[%emt 0:00:49]} 6. Ngf3 {[%emt 0:00:11]} Qxc5 {[%emt 0:00:23]} 7. Bd3 {[%emt 0:00:23]} Nbd7 {[%emt 0:01:34]} 8. O-O {[%emt 0:04:58]} Qc7 {[%emt 0:00:30]} 9. Qe2 {[%emt 0:00:34]} Nc5 {[%emt 0:02:10]} 10. Bc4 {[%emt 0:00:51]} Be7 {[%emt 0:02:27]} 11. b3 {[%emt 0:11:34]} O-O {[%emt 0:01:46]} 12. Bb2 {[%emt 0:00:13]} b6 {[%emt 0:05:39]} 13. a4 {[%emt 0:07:44]} Bb7 {[%emt 0:02:34]} 14. Be5 {[%emt 0:17:47]} Bd6 {[%emt 0:22:45]} 15. a5 {[%emt 0:00:59]} Rad8 {[%emt 0:08:45]} 16. axb6 {[%emt 0:02:45]} 1/2-1/2

[Event "Deloitte NED-ch 2019"]
[Site "Amsterdam"]
[Date "2019.07.05"]
[Round "5.1"]
[White "Van Foreest, Lucas"]
[Black "Bok, Benjamin"]
[Result "1-0"]
[ECO "B94"]
[WhiteElo "2521"]
[BlackElo "2645"]
[Annotator "RC"]
[PlyCount "141"]
[EventDate "2019.07.01"]
[EventType "tourn"]
[EventCountry "NED"]
[SourceTitle "playchess.com"]
[Source "ChessBase"]
[SourceQuality "1"]
[TimeControl "40/5400+30:1800+30"]

1. e4 {[%emt 0:00:00]} c5 {[%emt 0:00:06]} 2. Nf3 {[%emt 0:00:00]} d6 {[%emt 0:00:04]} 3. d4 {[%emt 0:00:00]} cxd4 {[%emt 0:00:04]} 4. Nxd4 {[%emt 0:00:00]} Nf6 {[%emt 0:00:08]} 5. Nc3 {[%emt 0:00:00]} a6 {[%emt 0:00:09]} 6. Bg5 {[%emt 0:00:00]} Nbd7 {[%emt 0:00:07]} 7. Bc4 {[%emt 0:00:00]} Qb6 {[%emt 0:00:20]} 8. Bb3 {[%emt 0:00:02]} e6 {[%emt 0:00:52]} 9. Bxf6 {[%emt 0:00:04]} Nxf6 {[%emt 0:00:53]} 10. Qd2 {[%emt 0:00:25]} g6 {[%emt 0:12:32]} 11. O-O-O {[%emt 0:00:14]} Bd7 {[%emt 0:02:28]} 12. f4 {[%emt 0:07:53]} Bh6 {[%emt 0:04:44]} 13. Kb1 {[%emt 0:03:46]} O-O-O {[%emt 0:05:52]} 14. Rhf1 {[%emt 0:00:44]} Kb8 {[%emt 0:13:30]} 15. Qe1 {[%emt 0:00:10]} Bg7 {[%emt 0:03:49]} 16. h3 {[%emt 0:08:50]} Rhf8 {[%emt 0:06:44]} 17. f5 {[%emt 0:04:25]} gxf5 {[%emt 0:06:35]} 18. exf5 {[%emt 0:00:08]} e5 {[%emt 0:00:48]} 19. Nde2 {[%emt 0:06:57]} Bc6 {[%emt 0:07:02]} 20. g4 {[%emt 0:00:04]} h6 {[%emt 0:02:02]} 21. Qg3 {[%emt 0:00:34]} Bh8 {[%emt 0:03:04]} 22. h4 {[%emt 0:03:19]} h5 {[%emt 0:07:32]} 23. g5 {[%emt 0:00:51]} Ng4 {[%emt 0:00:03]} 24. Nd5 {[%emt 0:05:29]} Bxd5 {[%emt 0:03:30]} 25. Bxd5 {[%emt 0:00:04]} Ne3 {[%emt 0:01:15]} 26. f6 {[%emt 0:06:08]} Rc8 {[%emt 0:00:35]} 27. Bb3 {[%emt 0:02:12]} a5 {[%emt 0:05:15]} 28. Rxd6 {[%emt 0:06:51]} Qxd6 {[%emt 0:03:28]} 29. Qxe3 {[%emt 0:00:36]} a4 {[%emt 0:08:09]} 30. Bxa4 {[%emt 0:00:32]} Rc4 {[%emt 0:00:29]} 31. Nc3 {[%emt 0:02:34]} Rd8 {[%emt 0:00:49]} 32. a3 {[%emt 0:03:31]} Qd4 {[%emt 0:00:10]} 33. Qg3 {[%emt 0:00:31]} Rxc3 {[%emt 0:01:03]} 34. Qxc3 {[%emt 0:01:25]} Qxa4 {[%emt 0:00:01]} 35. Qxe5+ {[%emt 0:00:07]} Ka7 {[%emt 0:02:40]} 36. Qc7 {[%emt 0:07:23]} Qd7 {[%emt 0:00:34]} 37. Qxd7 {[%emt 0:00:58]} Rxd7 {[%emt 0:00:01]} 38. Re1 {[%emt 0:00:09]} Rd6 {[%emt 0:00:57]} 39. b4 {[%emt 0:03:48]} Bxf6 {[%emt 0:00:33]} 40. gxf6 {[%emt 0:00:01]} Rxf6 {[%emt 0:00:07]} 41. Re5 {[%emt 0:30:13]} Rf1+ {[%emt 0:06:21]} 42. Kb2 {[%emt 0:00:00]} f5 {[%emt 0:00:07]} 43. c4 {[%emt 0:00:00]} Rf4 {[%emt 0:09:33]} 44. c5 {[%emt 0:00:00]} Rxh4 {[%emt 0:08:59]} 45. Rxf5 {[%emt 0:00:00]} Rh1 {[%emt 0:02:13]} 46. Rf7 {[%emt 0:00:00]} Ka6 {[%emt 0:04:43]} 47. Kb3 {[%emt 0:00:00]} h4 {[%emt 0:01:36]} 48. Ka4 {[%emt 0:00:00]} b5+ {[%emt 0:00:51]} 49. cxb6 {[%emt 0:00:00]} h3 {[%emt 0:00:19]} 50. b7 {[%emt 0:00:00]} Ka7 {[%emt 0:00:01]} 51. Rh7 {[%emt 0:00:00]} h2 {[%emt 0:00:35]} 52. Kb5 {[%emt 0:00:00]} Ra1 {[%emt 0:00:44]} 53. Rxh2 {[%emt 0:00:00]} Rxa3 {[%emt 0:00:06]} 54. b8=B+ {[%emt 0:00:00]} Kxb8 {[%emt 0:00:14]} 55. Kb6 {[%emt 0:00:00]} Kc8 {[%emt 0:01:26]} 56. Rh8+ {[%emt 0:00:00]} Kd7 {[%emt 0:00:01]} 57. b5 {[%emt 0:00:00]} Rb3 {[%emt 0:00:20]} 58. Rb8 {[%emt 0:00:00]} Rb1 {[%emt 0:00:50]} 59. Ka7 {[%emt 0:00:00]} Rb2 {[%emt 0:00:55]} 60. b6 {[%emt 0:00:00]} Rb1 {[%emt 0:00:30]} 61. Rh8 {[%emt 0:00:00]} Ra1+ {[%emt 0:00:26]} 62. Kb7 {[%emt 0:00:00]} Rb1 {[%emt 0:00:32]} 63. Rh2 {[%emt 0:00:00]} Ra1 {[%emt 0:00:28]} 64. Rd2+ {[%emt 0:00:00]} Ke6 {[%emt 0:00:33]} 65. Kb8 {[%emt 0:00:00]} Ke7 {[%emt 0:00:32]} 66. b7 {[%emt 0:00:00]} Ke6 {[%emt 0:00:28]} 67. Rd4 {[%emt 0:00:00]} Ke7 {[%emt 0:00:29]} 68. Kc7 {[%emt 0:00:20]} Rc1+ {[%emt 0:00:02]} 69. Kb6 {[%emt 0:00:09]} Rb1+ {[%emt 0:00:03]} 70. Kc6 {[%emt 0:00:05]} Rb2 {[%emt 0:00:46]} 71. Rd5 {[%emt 0:00:07]} 1-0

[Event "Deloitte NED-ch 2019"]
[Site "Amsterdam"]
[Date "2019.07.05"]
[Round "5.7"]
[White "Werle, Jan"]
[Black "Sokolov, Ivan"]
[Result "0-1"]
[ECO "D34"]
[WhiteElo "2555"]
[BlackElo "2584"]
[Annotator "ChessBase"]
[PlyCount "84"]
[EventDate "2019.07.01"]
[EventType "tourn"]
[EventCountry "NED"]
[SourceTitle "playchess.com"]
[Source "ChessBase"]
[SourceQuality "1"]
[TimeControl "40/5400+30:1800+30"]

1. Nf3 {[%emt 0:00:00]} d5 {[%emt 0:00:41]} 2. c4 {[%emt 0:00:56]} e6 {[%emt 0:03:23]} 3. g3 {[%emt 0:02:48]} Nf6 {[%emt 0:00:09]} 4. Bg2 {[%emt 0:00:09]} Be7 {[%emt 0:00:03]} 5. O-O {[%emt 0:00:42]} O-O {[%emt 0:00:04]} 6. b3 {[%emt 0:00:46]} c5 {[%emt 0:02:07]} 7. cxd5 {[%emt 0:01:03]} exd5 {[%emt 0:01:49]} 8. d4 {[%emt 0:01:02]} Nc6 {[%emt 0:00:21]} 9. Bb2 {[%emt 0:00:36]} Ne4 {[%emt 0:03:42]} 10. Nc3 {[%emt 0:09:48]} Bf6 {[%emt 0:00:23]} 11. e3 {[%emt 0:09:55]} Bg4 {[%emt 0:09:09]} 12. h3 {[%emt 0:24:29]} Bxf3 {[%emt 0:01:52]} 13. Bxf3 {[%emt 0:01:06]} cxd4 {[%emt 0:08:38]} 14. Nxe4 {[%emt 0:00:32]} dxe4 {[%emt 0:00:06]} 15. Bxe4 {[%emt 0:00:05]} dxe3 {[%emt 0:00:38]} 16. Qxd8 {[%emt 0:00:24]} exf2+ {[%emt 0:00:06]} 17. Rxf2 {[%emt 0:00:10]} Bxd8 {[%emt 0:00:05]} 18. Kg2 {[%emt 0:03:32]} Bb6 {[%emt 0:01:17]} 19. Rd2 {[%emt 0:00:30]} Rfe8 {[%emt 0:05:37]} 20. Bd5 {[%emt 0:07:50]} Rad8 {[%emt 0:06:28]} 21. Bc3 {[%emt 0:05:44]} Bd4 {[%emt 0:10:08]} 22. Bxd4 {[%emt 0:08:36]} Rxd5 {[%emt 0:00:19]} 23. Rad1 {[%emt 0:00:02]} f6 {[%emt 0:03:09]} 24. Bf2 {[%emt 0:00:45]} Rxd2 {[%emt 0:00:28]} 25. Rxd2 {[%emt 0:00:14]} Re7 {[%emt 0:02:43]} 26. b4 {[%emt 0:03:40]} a6 {[%emt 0:00:02]} 27. Bc5 {[%emt 0:07:06]} Rc7 {[%emt 0:00:14]} 28. a4 {[%emt 0:03:45]} Ne5 {[%emt 0:01:17]} 29. Rd8+ {[%emt 0:02:00]} Kf7 {[%emt 0:00:24]} 30. g4 {[%emt 0:00:15]} Rd7 {[%emt 0:05:51]} 31. Rc8 {[%emt 0:00:30]} Ke6 {[%emt 0:02:09]} 32. Rh8 {[%emt 0:00:36]} Nd3 {[%emt 0:01:29]} 33. Rxh7 {[%emt 0:01:42]} Nxc5 {[%emt 0:00:31]} 34. bxc5 {[%emt 0:00:03]} Kd5 {[%emt 0:01:42]} 35. Rh5+ {[%emt 0:00:53]} Kc4 {[%emt 0:00:43]} 36. h4 {[%emt 0:04:25]} Kb4 {[%emt 0:01:12]} 37. a5 {[%emt 0:00:33]} Rc7 {[%emt 0:01:36]} 38. Rh7 {[%emt 0:00:40]} Kxc5 {[%emt 0:01:27]} 39. h5 {[%emt 0:00:05]} Kb5 {[%emt 0:00:05]} 40. Kf3 {[%emt 0:01:11]} Kxa5 {[%emt 0:00:07]} 41. Ke4 {[%emt 0:10:41]} b5 {[%emt 0:02:44]} 42. Kf5 {[%emt 0:02:32]} b4 {[%emt 0:02:01]} 0-1

[Event "Deloitte NED-ch 2019"]
[Site "Amsterdam"]
[Date "2019.07.06"]
[Round "6.2"]
[White "Van den Doel, Erik"]
[Black "Van Foreest, Jorden"]
[Result "1/2-1/2"]
[ECO "D02"]
[WhiteElo "2605"]
[BlackElo "2612"]
[Annotator "RC"]
[PlyCount "112"]
[EventDate "2019.07.01"]
[EventType "tourn"]
[EventCountry "NED"]
[SourceTitle "playchess.com"]
[Source "ChessBase"]
[SourceQuality "1"]
[TimeControl "40/5400+30:1800+30"]

1. d4 {[%emt 0:00:00]} Nf6 {[%emt 0:00:00]} 2. Nf3 {[%emt 0:00:00]} g6 {[%emt 0:00:00]} 3. Nbd2 {[%emt 0:00:00]} d5 {[%emt 0:02:06]} 4. e3 {[%emt 0:00:00]} Bg7 {[%emt 0:01:45]} 5. b4 {[%emt 0:00:02]} Nbd7 {[%emt 0:05:11]} 6. Bb2 {[%emt 0:09:24]} a5 {[%emt 0:02:29]} 7. b5 {[%emt 0:02:18]} a4 {[%emt 0:01:40]} 8. Ba3 {[%emt 0:16:30]} O-O {[%emt 0:02:07]} 9. Be2 {[%emt 0:01:40]} Re8 {[%emt 0:01:11]} 10. O-O {[%emt 0:02:40]} e5 {[%emt 0:02:41]} 11. c4 {[%emt 0:06:09]} Ne4 {[%emt 0:03:24]} 12. Rc1 {[%emt 0:05:44]} Nxd2 {[%emt 0:09:43]} 13. Qxd2 {[%emt 0:12:10]} dxc4 {[%emt 0:06:13]} 14. dxe5 {[%emt 0:03:34]} Nxe5 {[%emt 0:02:17]} 15. Qxd8 {[%emt 0:03:55]} Nxf3+ {[%emt 0:02:23]} 16. Bxf3 {[%emt 0:02:48]} Rxd8 {[%emt 0:00:47]} 17. Rxc4 {[%emt 0:00:24]} Rd2 {[%emt 0:12:27]} 18. Rxc7 {[%emt 0:18:50]} Rxa2 {[%emt 0:00:36]} 19. Rfc1 {[%emt 0:02:18]} Rxa3 {[%emt 0:00:56]} 20. Rxc8+ {[%emt 0:00:03]} Rxc8 {[%emt 0:00:08]} 21. Rxc8+ {[%emt 0:00:02]} Bf8 {[%emt 0:00:11]} 22. g3 {[%emt 0:02:34]} Rb3 {[%emt 0:00:43]} 23. Ra8 {[%emt 0:00:09]} a3 {[%emt 0:00:22]} 24. Bxb7 {[%emt 0:00:12]} Rxb5 {[%emt 0:00:06]} 25. Bc6 {[%emt 0:00:19]} Rc5 {[%emt 0:01:58]} 26. Bf3 {[%emt 0:00:06]} Kg7 {[%emt 0:00:09]} 27. Kg2 {[%emt 0:00:04]} Rc2 {[%emt 0:04:03]} 28. Bd5 {[%emt 0:00:10]} Rd2 {[%emt 0:00:15]} 29. Bc4 {[%emt 0:00:20]} Rd7 {[%emt 0:01:00]} 30. Kf3 {[%emt 0:00:21]} h5 {[%emt 0:00:18]} 31. h4 {[%emt 0:02:15]} Bc5 {[%emt 0:01:17]} 32. Ra5 {[%emt 0:00:58]} Rc7 {[%emt 0:00:08]} 33. Bd5 {[%emt 0:00:25]} Kf6 {[%emt 0:00:19]} 34. Ke4 {[%emt 0:00:19]} Ke7 {[%emt 0:01:43]} 35. Kd3 {[%emt 0:02:47]} Kd6 {[%emt 0:00:58]} 36. Ra6+ {[%emt 0:00:24]} Ke7 {[%emt 0:00:53]} 37. Ra5 {[%emt 0:01:07]} Bb4 {[%emt 0:00:27]} 38. Ra4 {[%emt 0:00:34]} Rd7 {[%emt 0:02:51]} 39. e4 {[%emt 0:02:46]} Bc5 {[%emt 0:00:19]} 40. Ke2 {[%emt 0:02:15]} Rc7 {[%emt 0:07:05]} 41. f4 {[%emt 0:05:44]} Bd6 {[%emt 0:05:04]} 42. e5 {[%emt 0:01:10]} Bc5 {[%emt 0:00:05]} 43. Kf3 {[%emt 0:00:13]} Rd7 {[%emt 0:00:33]} 44. Ke4 {[%emt 0:03:25]} f5+ {[%emt 0:00:20]} 45. exf6+ {[%emt 0:00:10]} Kxf6 {[%emt 0:00:06]} 46. Ra6+ {[%emt 0:00:48]} Kg7 {[%emt 0:00:07]} 47. Ra5 {[%emt 0:02:02]} Re7+ {[%emt 0:01:44]} 48. Kd3 {[%emt 0:00:05]} Bf2 {[%emt 0:00:18]} 49. Be4 {[%emt 0:04:34]} Bxg3 {[%emt 0:00:31]} 50. Rxa3 {[%emt 0:01:06]} Bxh4 {[%emt 0:00:09]} 51. Rb3 {[%emt 0:00:16]} Rd7+ {[%emt 0:00:07]} 52. Ke3 {[%emt 0:00:35]} Rd6 {[%emt 0:00:28]} 53. Rb7+ {[%emt 0:00:37]} Kh6 {[%emt 0:00:08]} 54. Rc7 {[%emt 0:00:25]} Bd8 {[%emt 0:00:55]} 55. Rc6 {[%emt 0:00:05]} Rxc6 {[%emt 0:00:04]} 56. Bxc6 {[%emt 0:00:03]} g5 {[%emt 0:00:04]} 1/2-1/2

[Event "Deloitte NED-ch 2019"]
[Site "Amsterdam"]
[Date "2019.07.06"]
[Round "6.7"]
[White "Tiviakov, Sergei"]
[Black "Sokolov, Ivan"]
[Result "1/2-1/2"]
[ECO "C77"]
[WhiteElo "2608"]
[BlackElo "2584"]
[Annotator "RC"]
[PlyCount "86"]
[EventDate "2019.07.01"]
[EventType "tourn"]
[EventCountry "NED"]
[SourceTitle "playchess.com"]
[Source "ChessBase"]
[SourceQuality "1"]
[TimeControl "40/5400+30:1800+30"]

1. e4 {[%emt 0:00:00]} e5 {[%emt 0:09:12]} 2. Nf3 {[%emt 0:00:00]} Nc6 {[%emt 0:00:03]} 3. Bb5 {[%emt 0:00:00]} a6 {[%emt 0:00:13]} 4. Ba4 {[%emt 0:00:00]} Nf6 {[%emt 0:00:03]} 5. d3 {[%emt 0:00:12]} d6 {[%emt 0:00:41]} 6. c3 {[%emt 0:00:10]} Be7 {[%emt 0:00:41]} 7. Nbd2 {[%emt 0:03:09]} O-O {[%emt 0:00:57]} 8. O-O {[%emt 0:00:21]} Nd7 {[%emt 0:02:22]} 9. Bc2 {[%emt 0:08:32]} Nb6 {[%emt 0:00:12]} 10. d4 {[%emt 0:06:06]} exd4 {[%emt 0:09:44]} 11. Nxd4 {[%emt 0:03:18]} Nxd4 {[%emt 0:10:23]} 12. cxd4 {[%emt 0:00:02]} f5 {[%emt 0:00:02]} 13. Bb3+ {[%emt 0:10:20]} Kh8 {[%emt 0:01:03]} 14. e5 {[%emt 0:00:05]} dxe5 {[%emt 0:09:51]} 15. dxe5 {[%emt 0:00:04]} Nd7 {[%emt 0:00:02]} 16. Nf3 {[%emt 0:02:37]} Nc5 {[%emt 0:00:06]} 17. Qxd8 {[%emt 0:06:03]} Rxd8 {[%emt 0:00:39]} 18. Bc2 {[%emt 0:00:38]} a5 {[%emt 0:19:34]} 19. Be3 {[%emt 0:04:15]} Be6 {[%emt 0:00:06]} 20. Rfc1 {[%emt 0:15:23]} b6 {[%emt 0:01:37]} 21. Ng5 {[%emt 0:01:13]} Bxg5 {[%emt 0:02:02]} 22. Bxg5 {[%emt 0:00:19]} Rd5 {[%emt 0:00:03]} 23. Bd1 {[%emt 0:14:24]} Rc8 {[%emt 0:01:22]} 24. Bf3 {[%emt 0:01:32]} Ne4 {[%emt 0:00:55]} 25. Bf4 {[%emt 0:00:15]} c5 {[%emt 0:00:40]} 26. h4 {[%emt 0:00:40]} h6 {[%emt 0:02:28]} 27. h5 {[%emt 0:06:17]} b5 {[%emt 0:09:00]} 28. Be2 {[%emt 0:13:32]} c4 {[%emt 0:00:29]} 29. f3 {[%emt 0:00:30]} Nc5 {[%emt 0:00:18]} 30. Rd1 {[%emt 0:00:10]} Rcd8 {[%emt 0:04:56]} 31. Rxd5 {[%emt 0:00:04]} Bxd5 {[%emt 0:00:03]} 32. Rd1 {[%emt 0:01:17]} a4 {[%emt 0:00:51]} 33. Bd2 {[%emt 0:02:23]} Be6 {[%emt 0:02:48]} 34. a3 {[%emt 0:00:25]} Kg8 {[%emt 0:00:36]} 35. Bc3 {[%emt 0:00:59]} Nd3 {[%emt 0:02:59]} 36. g3 {[%emt 0:01:42]} f4 {[%emt 0:00:27]} 37. gxf4 {[%emt 0:00:41]} Kf7 {[%emt 0:02:32]} 38. Bxd3 {[%emt 0:00:37]} Rxd3 {[%emt 0:00:10]} 39. Rxd3 {[%emt 0:00:06]} cxd3 {[%emt 0:00:02]} 40. Kf2 {[%emt 0:00:06]} Bf5 {[%emt 0:01:36]} 41. Ke3 {[%emt 0:05:18]} Ke6 {[%emt 0:01:38]} 42. Kd4 {[%emt 0:03:50]} g6 {[%emt 0:00:26]} 43. hxg6 {[%emt 0:00:15]} Bxg6 {[%emt 0:07:00]} 1/2-1/2

[Event "Deloitte NED-ch 2019"]
[Site "Amsterdam"]
[Date "2019.07.07"]
[Round "7.1"]
[White "Van Foreest, Lucas"]
[Black "Van den Doel, Erik"]
[Result "1-0"]
[ECO "B13"]
[WhiteElo "2521"]
[BlackElo "2605"]
[Annotator "RC"]
[PlyCount "83"]
[EventDate "2019.07.01"]
[EventType "tourn"]
[EventCountry "NED"]
[SourceTitle "playchess.com"]
[Source "ChessBase"]
[SourceQuality "1"]
[TimeControl "40/5400+30:1800+30"]

1. e4 {[%emt 0:07:15]} c6 {[%emt 0:00:00]} 2. d4 {[%emt 0:01:01]} d5 {[%emt 0:00:00]} 3. exd5 {[%emt 0:00:03]} cxd5 {[%emt 0:00:00]} 4. Bd3 {[%emt 0:00:03]} Nc6 {[%emt 0:00:13]} 5. c3 {[%emt 0:00:03]} Qc7 {[%emt 0:00:08]} 6. Ne2 {[%emt 0:00:05]} e6 {[%emt 0:02:39]} 7. Bf4 {[%emt 0:01:16]} Bd6 {[%emt 0:00:06]} 8. Bxd6 {[%emt 0:00:25]} Qxd6 {[%emt 0:00:04]} 9. O-O {[%emt 0:02:06]} Nge7 {[%emt 0:00:04]} 10. Nd2 {[%emt 0:00:38]} O-O {[%emt 0:00:42]} 11. f4 {[%emt 0:01:40]} Bd7 {[%emt 0:01:30]} 12. Nf3 {[%emt 0:00:17]} f6 {[%emt 0:00:15]} 13. Qc2 {[%emt 0:08:42]} Nf5 {[%emt 0:01:59]} 14. g4 {[%emt 0:03:25]} Ne3 {[%emt 0:01:33]} 15. Bxh7+ {[%emt 0:01:06]} Kh8 {[%emt 0:15:27]} 16. Qd3 {[%emt 0:02:42]} Nxg4 {[%emt 0:02:01]} 17. Nh4 {[%emt 0:04:45]} Ne7 {[%emt 0:23:52]} 18. Ng6+ {[%emt 0:06:25]} Nxg6 {[%emt 0:00:14]} 19. Bxg6 {[%emt 0:00:04]} Nh6 {[%emt 0:12:24]} 20. Kh1 {[%emt 0:00:10]} Be8 {[%emt 0:09:33]} 21. Rg1 {[%emt 0:00:42]} Qe7 {[%emt 0:08:23]} 22. Rae1 {[%emt 0:09:33]} f5 {[%emt 0:03:02]} 23. Qh3 {[%emt 0:13:25]} Rf6 {[%emt 0:00:19]} 24. Bxe8 {[%emt 0:01:33]} Rxe8 {[%emt 0:00:05]} 25. Ng3 {[%emt 0:01:08]} Kh7 {[%emt 0:03:22]} 26. Nh5 {[%emt 0:02:32]} Rf7 {[%emt 0:05:01]} 27. Qg3 {[%emt 0:01:53]} Kh8 {[%emt 0:02:33]} 28. h3 {[%emt 0:02:25]} Ng8 {[%emt 0:00:14]} 29. Qg6 {[%emt 0:02:08]} Nf6 {[%emt 0:00:47]} 30. Re2 {[%emt 0:00:19]} Nxh5 {[%emt 0:02:03]} 31. Qxh5+ {[%emt 0:00:04]} Kg8 {[%emt 0:00:02]} 32. Rg6 {[%emt 0:00:42]} Qd6 {[%emt 0:01:17]} 33. Qh6 {[%emt 0:03:45]} Qa6 {[%emt 0:01:39]} 34. Reg2 {[%emt 0:01:06]} Qf1+ {[%emt 0:00:05]} 35. Kh2 {[%emt 0:00:05]} Ree7 {[%emt 0:00:07]} 36. Qh4 {[%emt 0:01:12]} Qf3 {[%emt 0:03:29]} 37. R6g5 {[%emt 0:00:05]} Rd7 {[%emt 0:00:36]} 38. Rh5 {[%emt 0:00:26]} Rf8 {[%emt 0:00:57]} 39. Rh8+ {[%emt 0:00:17]} Kf7 {[%emt 0:00:04]} 40. Rxg7+ {[%emt 0:00:14]} Ke8 {[%emt 0:00:04]} 41. Rxf8+ {[%emt 0:30:05]} Kxf8 {[%emt 0:30:03]} 42. Qh8# {[%emt 0:00:04]} 1-0

[Event "Deloitte NED-ch 2019"]
[Site "Amsterdam"]
[Date "2019.07.07"]
[Round "7.2"]
[White "Van Foreest, Jorden"]
[Black "Tiviakov, Sergei"]
[Result "1/2-1/2"]
[ECO "E17"]
[WhiteElo "2612"]
[BlackElo "2608"]
[Annotator "RC"]
[PlyCount "54"]
[EventDate "2019.07.01"]
[EventType "tourn"]
[EventCountry "NED"]
[SourceTitle "playchess.com"]
[Source "ChessBase"]
[SourceQuality "1"]
[TimeControl "40/5400+30:1800+30"]

1. d4 {[%emt 0:00:00]} Nf6 {[%emt 0:00:00]} 2. c4 {[%emt 0:00:00]} e6 {[%emt 0:00:00]} 3. Nf3 {[%emt 0:00:07]} b6 {[%emt 0:00:00]} 4. g3 {[%emt 0:00:24]} Bb7 {[%emt 0:00:00]} 5. Bg2 {[%emt 0:00:20]} Be7 {[%emt 0:00:00]} 6. O-O {[%emt 0:00:24]} O-O {[%emt 0:00:01]} 7. d5 {[%emt 0:00:19]} exd5 {[%emt 0:01:12]} 8. Nh4 {[%emt 0:00:32]} c6 {[%emt 0:00:06]} 9. cxd5 {[%emt 0:00:21]} Nxd5 {[%emt 0:00:45]} 10. Nf5 {[%emt 0:00:21]} Nc7 {[%emt 0:00:04]} 11. Nc3 {[%emt 0:00:59]} Ne6 {[%emt 0:00:11]} 12. e4 {[%emt 0:00:25]} d6 {[%emt 0:00:07]} 13. Qd2 {[%emt 0:00:06]} Qd7 {[%emt 0:29:06]} 14. Rd1 {[%emt 0:02:37]} Rd8 {[%emt 0:00:15]} 15. b3 {[%emt 0:06:50]} Na6 {[%emt 0:04:08]} 16. Bb2 {[%emt 0:04:36]} Nac7 {[%emt 0:02:38]} 17. h4 {[%emt 0:03:53]} Ne8 {[%emt 0:11:14]} 18. Ne2 {[%emt 0:04:52]} Bf8 {[%emt 0:01:43]} 19. h5 {[%emt 0:03:09]} f6 {[%emt 0:02:46]} 20. Nf4 {[%emt 0:03:57]} Nxf4 {[%emt 0:06:41]} 21. Qxf4 {[%emt 0:00:19]} Qf7 {[%emt 0:00:07]} 22. Qg4 {[%emt 0:02:38]} Kh8 {[%emt 0:01:17]} 23. Rac1 {[%emt 0:00:05]} c5 {[%emt 0:06:30]} 24. Nh4 {[%emt 0:09:39]} Bc8 {[%emt 0:02:46]} 25. Qe2 {[%emt 0:00:18]} Bb7 {[%emt 0:00:12]} 26. Qg4 {[%emt 0:02:15]} Bc8 {[%emt 0:02:31]} 27. Qe2 {[%emt 0:00:12]} Bb7 {[%emt 0:00:33]} 1/2-1/2